[Event "NJSK 2023 Jeugd A"]
[Site "Almelo, Netherlands"]
[Date "2023.05.01"]
[Round "2.3"]
[White "Achuthan, Dylan"]
[Black "Wierenga, Jael"]
[Result "1/2-1/2"]
[TimeControl "90min/40moves + 30min + 30sec/move"]
[WhiteElo "2045"]
[BlackElo "1772"]

1. d4 {[%clk 01:30:54]} {[%emt 00:00:05]} d5 {[%clk 01:30:36]} {[%emt
00:00:25]} 2. c4 {[%clk 01:31:12]} {[%emt 00:00:12]} e6 {[%clk 01:30:57]}
{[%emt 00:00:09]} 3. Nf3 {[%clk 01:31:35]} {[%emt 00:00:07]} a6 {[%clk
01:31:23]} {[%emt 00:00:05]} 4. e3 {[%clk 01:31:44]} {[%emt 00:00:20]} Nf6
{[%clk 01:31:44]} {[%emt 00:00:10]} 5. Nc3 {[%clk 01:30:36]} {[%emt 00:01:38]}
Be7 {[%clk 01:31:21]} {[%emt 00:00:53]} 6. b3 {[%clk 01:29:27]} {[%emt
00:01:39]} O-O {[%clk 01:31:30]} {[%emt 00:00:21]} 7. Be2 {[%clk 01:29:26]}
{[%emt 00:00:30]} b6 {[%clk 01:31:27]} {[%emt 00:00:34]} 8. O-O {[%clk
01:29:28]} {[%emt 00:00:28]} Bb7 {[%clk 01:31:53]} {[%emt 00:00:05]} 9. Bb2
{[%clk 01:29:33]} {[%emt 00:00:25]} Nbd7 {[%clk 01:31:58]} {[%emt 00:00:25]} 10.
Bd3 {[%clk 01:29:33]} {[%emt 00:00:29]} c5 {[%clk 01:31:56]} {[%emt 00:00:32]}
11. Qe2 {[%clk 01:27:27]} {[%emt 00:02:35]} Qc7 {[%clk 01:29:55]} {[%emt
00:02:32]} 12. Rac1 {[%clk 01:26:06]} {[%emt 00:01:51]} cxd4 {[%clk 01:24:09]}
{[%emt 00:06:16]} 13. exd4 {[%clk 01:21:09]} {[%emt 00:05:26]} dxc4 {[%clk
01:21:00]} {[%emt 00:03:40]} 14. bxc4 {[%clk 01:09:53]} {[%emt 00:11:46]} Bd6
{[%clk 01:18:18]} {[%emt 00:03:11]} 15. h3 {[%clk 01:04:10]} {[%emt 00:06:13]}
Rfe8 {[%clk 01:15:08]} {[%emt 00:03:40]} 16. Rfe1 {[%clk 00:59:44]} {[%emt
00:04:56]} Bf4 {[%clk 01:01:01]} {[%emt 00:14:37]} 17. Rc2 {[%clk 01:00:01]}
{[%emt 00:00:13]} e5 {[%clk 00:41:41]} {[%emt 00:19:51]} 18. Nd5 {[%clk
00:49:45]} {[%emt 00:10:46]} Nxd5 {[%clk 00:41:36]} {[%emt 00:00:34]} 19. cxd5
{[%clk 00:49:14]} {[%emt 00:01:00]} Qb8 {[%clk 00:39:52]} {[%emt 00:02:14]} 20.
dxe5 {[%clk 00:35:12]} {[%emt 00:14:32]} Bxd5 {[%clk 00:31:00]} {[%emt
00:09:22]} 21. Bxh7+ {[%clk 00:32:26]} {[%emt 00:03:16]} Kh8 {[%clk 00:30:48]}
{[%emt 00:00:42]} 22. Be4 {[%clk 00:22:58]} {[%emt 00:09:58]} Qb7 {[%clk
00:13:17]} {[%emt 00:18:01]} 23. Bxd5 {[%clk 00:17:00]} {[%emt 00:06:28]} Qxd5
{[%clk 00:13:46]} {[%emt 00:00:01]} 24. Qe4 {[%clk 00:16:52]} {[%emt 00:00:38]}
Qxe4 {[%clk 00:13:08]} {[%emt 00:01:08]} 25. Rxe4 {[%clk 00:17:20]} {[%emt
00:00:02]} Bh6 {[%clk 00:13:23]} {[%emt 00:00:14]} 26. g4 {[%clk 00:14:51]}
{[%emt 00:02:59]} Nc5 {[%clk 00:11:56]} {[%emt 00:01:58]} 27. Rd4 {[%clk
00:14:47]} {[%emt 00:00:31]} Ne6 {[%clk 00:12:04]} {[%emt 00:00:24]} 28. Rd6
{[%clk 00:15:16]} {[%emt 00:00:02]} b5 {[%clk 00:11:30]} {[%emt 00:01:04]} 29.
Kg2 {[%clk 00:06:45]} {[%emt 00:09:00]} Bf4 {[%clk 00:10:22]} {[%emt 00:01:38]}
30. Rcc6 {[%clk 00:06:32]} {[%emt 00:00:43]} a5 {[%clk 00:10:36]} {[%emt
00:00:16]} 31. Ne1 {[%clk 00:05:44]} {[%emt 00:01:18]} Nd8 {[%clk 00:09:57]}
{[%emt 00:01:08]} 32. Ra6 {[%clk 00:05:26]} {[%emt 00:00:47]} Rxa6 {[%clk
00:08:34]} {[%emt 00:01:54]} 33. Rxa6 {[%clk 00:05:55]} {[%emt 00:00:01]} Bxe5
{[%clk 00:07:55]} {[%emt 00:01:08]} 34. Bxe5 {[%clk 00:04:30]} {[%emt
00:01:56]} Rxe5 {[%clk 00:08:24]} {[%emt 00:00:01]} 35. Nf3 {[%clk 00:04:03]}
{[%emt 00:00:57]} Rd5 {[%clk 00:07:20]} {[%emt 00:01:33]} 36. Rxa5 {[%clk
00:03:44]} {[%emt 00:00:50]} Nc6 {[%clk 00:06:27]} {[%emt 00:01:23]} 37. Ra8+
{[%clk 00:03:48]} {[%emt 00:00:25]} Kh7 {[%clk 00:06:42]} {[%emt 00:00:15]} 38.
Kg3 {[%clk 00:03:54]} {[%emt 00:00:23]} b4 {[%clk 00:04:18]} {[%emt 00:02:55]}
39. Kf4 {[%clk 00:02:32]} {[%emt 00:01:49]} Rd3 {[%clk 00:00:55]} {[%emt
00:03:56]} 40. Ra6 {[%clk 00:00:54]} {[%emt 00:02:09]} Rc3 {[%clk 00:00:32]}
{[%emt 00:00:53]} 41. Ke4 {[%clk 00:19:48]} {[%emt 00:11:35]} f6 {[%clk
00:27:03]} {[%emt 00:04:00]} 42. Rb6 {[%clk 00:19:04]} {[%emt 00:01:14]} Rc2
{[%clk 00:25:34]} {[%emt 00:01:58]} 43. h4 {[%clk 00:17:36]} {[%emt 00:01:58]}
Ne7 {[%clk 00:19:08]} {[%emt 00:06:56]} 44. Nd4 {[%clk 00:13:06]} {[%emt
00:05:00]} Rxf2 {[%clk 00:15:44]} {[%emt 00:03:54]} 45. Rb7 {[%clk 00:09:43]}
{[%emt 00:03:53]} Nc8 {[%clk 00:15:03]} {[%emt 00:01:11]} 46. Rc7 {[%clk
00:08:29]} {[%emt 00:01:44]} Nd6+ {[%clk 00:12:51]} {[%emt 00:02:42]} 47. Kd5
{[%clk 00:08:34]} {[%emt 00:00:25]} Rd2 {[%clk 00:11:43]} {[%emt 00:01:37]} 48.
Rd7 {[%clk 00:07:09]} {[%emt 00:01:56]} Nb5 {[%clk 00:11:30]} {[%emt 00:00:44]}
49. Kc5 {[%clk 00:06:39]} {[%emt 00:00:58]} Nxd4 {[%clk 00:11:50]} {[%emt
00:00:11]} 50. Rxd4 {[%clk 00:06:57]} {[%emt 00:00:12]} Rxa2 {[%clk 00:12:10]}
{[%emt 00:00:11]} 51. Rxb4 {[%clk 00:06:46]} {[%emt 00:00:40]} Rh2 {[%clk
00:12:07]} {[%emt 00:00:33]} 52. h5 {[%clk 00:04:50]} {[%emt 00:02:27]} Kh6
{[%clk 00:12:23]} {[%emt 00:00:14]} 53. Kd4 {[%clk 00:03:53]} {[%emt 00:01:27]}
Rh4 {[%clk 00:09:23]} {[%emt 00:03:29]} 54. Ke3 {[%clk 00:04:00]} {[%emt
00:00:24]} Kg5 {[%clk 00:09:05]} {[%emt 00:00:47]} 55. Rb7 {[%clk 00:03:06]}
{[%emt 00:01:25]} Rxg4 {[%clk 00:07:29]} {[%emt 00:02:05]} 56. Rxg7+ {[%clk
00:02:56]} {[%emt 00:00:40]} Kxh5 {[%clk 00:07:53]} {[%emt 00:00:06]} 57. Ra7
{[%clk 00:03:11]} {[%emt 00:00:15]} Rg5 {[%clk 00:07:38]} {[%emt 00:00:45]} 58.
Kf3 {[%clk 00:02:58]} {[%emt 00:00:43]} 1/2-1/2

[Event "NJSK 2023 Jeugd A"]
[Site "Almelo, Netherlands"]
[Date "2023.05.01"]
[Round "2.4"]
[White "Smid, Jelle"]
[Black "De Winter, Arthur"]
[Result "0-1"]
[TimeControl "90min/40moves + 30min + 30sec/move"]
[WhiteElo "1776"]
[BlackElo "2374"]

1. b3 {[%clk 01:30:27]} {[%emt 00:00:33]} e5 {[%clk 01:30:26]} {[%emt
00:00:33]} 2. Bb2 {[%clk 01:30:51]} {[%emt 00:00:07]} Nc6 {[%clk 01:30:54]}
{[%emt 00:00:02]} 3. e3 {[%clk 01:31:14]} {[%emt 00:00:07]} g6 {[%clk
01:31:06]} {[%emt 00:00:17]} 4. Nf3 {[%clk 01:28:23]} {[%emt 00:03:20]} Bg7
{[%clk 01:31:25]} {[%emt 00:00:11]} 5. Bb5 {[%clk 01:26:22]} {[%emt 00:02:32]}
Nge7 {[%clk 01:30:56]} {[%emt 00:00:59]} 6. O-O {[%clk 01:24:57]} {[%emt
00:01:55]} O-O {[%clk 01:31:02]} {[%emt 00:00:23]} 7. d4 {[%clk 01:19:56]}
{[%emt 00:05:31]} e4 {[%clk 01:29:13]} {[%emt 00:02:19]} 8. Nfd2 {[%clk
01:19:50]} {[%emt 00:00:36]} f5 {[%clk 01:29:07]} {[%emt 00:00:37]} 9. Be2
{[%clk 01:14:09]} {[%emt 00:06:11]} d6 {[%clk 01:19:18]} {[%emt 00:10:19]} 10.
c4 {[%clk 01:08:38]} {[%emt 00:06:01]} g5 {[%clk 01:17:55]} {[%emt 00:01:53]}
11. Nc3 {[%clk 00:56:14]} {[%emt 00:12:54]} g4 {[%clk 01:14:59]} {[%emt
00:03:26]} 12. a3 {[%clk 00:48:11]} {[%emt 00:08:34]} a5 {[%clk 01:06:25]}
{[%emt 00:09:03]} 13. Kh1 {[%clk 00:41:49]} {[%emt 00:06:52]} Ng6 {[%clk
01:03:57]} {[%emt 00:02:58]} 14. f3 {[%clk 00:37:53]} {[%emt 00:04:26]} exf3
{[%clk 00:55:30]} {[%emt 00:08:58]} 15. gxf3 {[%clk 00:38:14]} {[%emt
00:00:08]} f4 {[%clk 00:54:44]} {[%emt 00:01:17]} 16. d5 {[%clk 00:36:51]}
{[%emt 00:01:53]} g3 {[%clk 00:52:18]} {[%emt 00:02:56]} 17. Re1 {[%clk
00:32:56]} {[%emt 00:04:24]} Qh4 {[%clk 00:52:16]} {[%emt 00:00:31]} 18. Nf1
{[%clk 00:33:11]} {[%emt 00:00:15]} g2+ {[%clk 00:51:13]} {[%emt 00:01:34]} 19.
Kxg2 {[%clk 00:32:57]} {[%emt 00:00:44]} Bh3+ {[%clk 00:51:41]} {[%emt
00:00:02]} 20. Kg1 {[%clk 00:32:55]} {[%emt 00:00:31]} Qg5+ {[%clk 00:52:07]}
{[%emt 00:00:04]} 0-1

[Event "NJSK 2023 Jeugd A"]
[Site "Almelo, Netherlands"]
[Date "2023.05.01"]
[Round "2.5"]
[White "Alvares, Thomas"]
[Black "Groen, Jari"]
[Result "1/2-1/2"]
[TimeControl "90min/40moves + 30min + 30sec/move"]
[WhiteElo "1825"]
[BlackElo "2028"]

1. e4 {[%clk 01:30:57]} {[%emt 00:00:02]} c5 {[%clk 01:28:07]} {[%emt
00:02:54]} 2. Nf3 {[%clk 01:31:20]} {[%emt 00:00:06]} d6 {[%clk 01:28:22]}
{[%emt 00:00:15]} 3. d4 {[%clk 01:31:43]} {[%emt 00:00:07]} cxd4 {[%clk
01:28:31]} {[%emt 00:00:21]} 4. Nxd4 {[%clk 01:32:06]} {[%emt 00:00:07]} Nf6
{[%clk 01:28:56]} {[%emt 00:00:06]} 5. Nc3 {[%clk 01:32:27]} {[%emt 00:00:09]}
a6 {[%clk 01:29:18]} {[%emt 00:00:07]} 6. Bg5 {[%clk 01:32:51]} {[%emt
00:00:06]} e6 {[%clk 01:29:34]} {[%emt 00:00:15]} 7. f4 {[%clk 01:33:14]}
{[%emt 00:00:06]} Be7 {[%clk 01:29:51]} {[%emt 00:00:13]} 8. Qf3 {[%clk
01:33:34]} {[%emt 00:00:10]} Qc7 {[%clk 01:30:11]} {[%emt 00:00:10]} 9. O-O-O
{[%clk 01:33:53]} {[%emt 00:00:10]} Nbd7 {[%clk 01:30:31]} {[%emt 00:00:11]} 10.
g4 {[%clk 01:34:13]} {[%emt 00:00:09]} h6 {[%clk 01:30:16]} {[%emt 00:00:45]}
11. Bxf6 {[%clk 01:34:35]} {[%emt 00:00:08]} Bxf6 {[%clk 01:30:36]} {[%emt
00:00:10]} 12. h4 {[%clk 01:34:58]} {[%emt 00:00:07]} Nb6 {[%clk 01:29:34]}
{[%emt 00:01:33]} 13. g5 {[%clk 01:34:33]} {[%emt 00:00:55]} Bxd4 {[%clk
01:29:47]} {[%emt 00:00:17]} 14. Rxd4 {[%clk 01:34:58]} {[%emt 00:00:05]} Qc5
{[%clk 01:30:02]} {[%emt 00:00:15]} 15. Qd3 {[%clk 01:34:58]} {[%emt 00:00:29]}
hxg5 {[%clk 01:23:20]} {[%emt 00:07:12]} 16. b4 {[%clk 01:34:00]} {[%emt
00:01:28]} Qc7 {[%clk 01:22:07]} {[%emt 00:01:44]} 17. fxg5 {[%clk 01:33:18]}
{[%emt 00:01:12]} Bd7 {[%clk 01:21:33]} {[%emt 00:01:03]} 18. Rxd6 {[%clk
01:16:37]} {[%emt 00:17:11]} Nc8 {[%clk 01:21:37]} {[%emt 00:00:26]} 19. Rd4
{[%clk 01:16:59]} {[%emt 00:00:08]} Nb6 {[%clk 01:21:32]} {[%emt 00:00:35]} 20.
Rd6 {[%clk 01:05:09]} {[%emt 00:12:20]} Nc8 {[%clk 01:17:39]} {[%emt 00:04:23]}
21. Rd4 {[%clk 01:04:59]} {[%emt 00:00:39]} 1/2-1/2

[Event "NJSK 2023 Jeugd A"]
[Site "Almelo, Netherlands"]
[Date "2023.05.01"]
[Round "2.6"]
[White "Goudriaan, Rafael"]
[Black "Bon, Gijs"]
[Result "1/2-1/2"]
[TimeControl "90min/40moves + 30min + 30sec/move"]
[WhiteElo "1992"]
[BlackElo "1805"]

1. e4 {[%clk 01:30:58]} c6 {[%clk 01:30:57]} {[%emt 00:00:04]} 2. d4 {[%clk
01:31:26]} {[%emt 00:00:02]} d5 {[%clk 01:31:22]} {[%emt 00:00:05]} 3. e5
{[%clk 01:31:55]} {[%emt 00:00:02]} Bf5 {[%clk 01:31:50]} {[%emt 00:00:03]} 4.
Nd2 {[%clk 01:32:22]} {[%emt 00:00:03]} e6 {[%clk 01:29:53]} {[%emt 00:02:27]}
5. Nb3 {[%clk 01:32:49]} {[%emt 00:00:03]} Nd7 {[%clk 01:29:06]} {[%emt
00:01:17]} 6. Nf3 {[%clk 01:33:15]} {[%emt 00:00:03]} Ne7 {[%clk 01:27:56]}
{[%emt 00:01:41]} 7. Be2 {[%clk 01:33:18]} {[%emt 00:00:26]} Bg6 {[%clk
01:24:58]} {[%emt 00:03:29]} 8. O-O {[%clk 01:33:39]} {[%emt 00:00:08]} Nf5
{[%clk 01:25:26]} {[%emt 00:00:03]} 9. Bd2 {[%clk 01:32:30]} {[%emt 00:01:38]}
Be7 {[%clk 01:24:56]} {[%emt 00:01:00]} 10. g4 {[%clk 01:32:39]} {[%emt
00:00:21]} Nh4 {[%clk 01:24:33]} {[%emt 00:00:53]} 11. Nxh4 {[%clk 01:33:08]}
{[%emt 00:00:02]} Bxh4 {[%clk 01:24:55]} {[%emt 00:00:08]} 12. f4 {[%clk
01:33:36]} {[%emt 00:00:02]} Be4 {[%clk 01:18:31]} {[%emt 00:06:54]} 13. Bb4
{[%clk 01:10:01]} {[%emt 00:24:05]} Be7 {[%clk 01:17:54]} {[%emt 00:01:07]} 14.
Bxe7 {[%clk 01:08:59]} {[%emt 00:01:32]} Qxe7 {[%clk 01:18:19]} {[%emt
00:00:04]} 15. Nd2 {[%clk 01:09:22]} {[%emt 00:00:07]} Bg6 {[%clk 01:18:43]}
{[%emt 00:00:07]} 16. c4 {[%clk 01:01:12]} {[%emt 00:08:40]} h5 {[%clk
01:13:54]} {[%emt 00:05:18]} 17. gxh5 {[%clk 00:52:56]} {[%emt 00:08:46]} Qh4
{[%clk 01:13:20]} {[%emt 00:01:04]} 18. Rf2 {[%clk 00:46:07]} {[%emt 00:07:20]}
Bxh5 {[%clk 01:13:14]} {[%emt 00:00:36]} 19. Rc1 {[%clk 00:46:02]} {[%emt
00:00:35]} Nb6 {[%clk 00:54:39]} {[%emt 00:19:05]} 20. c5 {[%clk 00:45:00]}
{[%emt 00:01:31]} Nc8 {[%clk 00:33:16]} {[%emt 00:21:53]} 21. Qb3 {[%clk
00:43:25]} {[%emt 00:02:03]} Rb8 {[%clk 00:33:20]} {[%emt 00:00:27]} 22. Bxh5
{[%clk 00:43:15]} {[%emt 00:00:40]} Rxh5 {[%clk 00:32:01]} {[%emt 00:01:49]} 23.
Nf1 {[%clk 00:43:13]} {[%emt 00:00:29]} g5 {[%clk 00:21:33]} {[%emt 00:11:01]}
24. Qg3 {[%clk 00:41:04]} {[%emt 00:02:39]} Ne7 {[%clk 00:19:12]} {[%emt
00:02:51]} 25. Ne3 {[%clk 00:40:31]} {[%emt 00:01:02]} gxf4 {[%clk 00:11:20]}
{[%emt 00:08:23]} 26. Rxf4 {[%clk 00:40:04]} {[%emt 00:00:56]} Qxg3+ {[%clk
00:11:46]} {[%emt 00:00:04]} 27. hxg3 {[%clk 00:40:23]} {[%emt 00:00:11]} Ng6
{[%clk 00:10:06]} {[%emt 00:02:10]} 28. Rf2 {[%clk 00:40:15]} {[%emt 00:00:36]}
Ke7 {[%clk 00:09:53]} {[%emt 00:00:44]} 29. Rcf1 {[%clk 00:40:31]} {[%emt
00:00:13]} Rh7 {[%clk 00:08:48]} {[%emt 00:01:36]} 30. Rh2 {[%clk 00:38:52]}
{[%emt 00:02:09]} Rxh2 {[%clk 00:08:09]} 31. Kxh2 {[%clk 00:39:21]} b6 {[%clk
00:07:51]} {[%emt 00:01:59]} 32. cxb6 {[%clk 00:39:23]} {[%emt 00:00:27]} axb6
{[%clk 00:05:05]} {[%emt 00:03:16]} 33. Rc1 {[%clk 00:35:58]} {[%emt 00:03:55]}
c5 {[%clk 00:05:31]} {[%emt 00:00:04]} 34. dxc5 {[%clk 00:36:12]} {[%emt
00:00:16]} bxc5 {[%clk 00:05:55]} {[%emt 00:00:06]} 35. b3 {[%clk 00:36:26]}
{[%emt 00:00:17]} Nxe5 {[%clk 00:03:23]} {[%emt 00:03:01]} 36. Rxc5 {[%clk
00:36:53]} {[%emt 00:00:03]} Ra8 {[%clk 00:03:33]} {[%emt 00:00:20]} 37. Rc2
{[%clk 00:34:05]} {[%emt 00:03:19]} d4 {[%clk 00:01:45]} {[%emt 00:02:18]} 38.
Nc4 {[%clk 00:33:39]} {[%emt 00:00:57]} d3 {[%clk 00:01:06]} {[%emt 00:01:09]}
39. Rb2 {[%clk 00:33:18]} {[%emt 00:00:51]} Nxc4 {[%clk 00:01:20]} {[%emt
00:00:15]} 40. bxc4 {[%clk 00:33:47]} e5 {[%clk 00:01:17]} {[%emt 00:00:33]} 41.
Kg2 {[%clk 00:34:07]} {[%emt 00:00:11]} Kd6 {[%clk 00:00:33]} {[%emt 00:01:14]}
42. Kf3 {[%clk 00:32:38]} {[%emt 00:01:58]} Kc5 {[%clk 00:29:37]} {[%emt
00:01:27]} 43. Ke3 {[%clk 01:03:05]} {[%emt 00:00:02]} Kxc4 {[%clk 00:29:41]}
{[%emt 00:00:25]} 44. Rb7 {[%clk 01:03:22]} {[%emt 00:00:13]} e4 {[%clk
00:12:02]} {[%emt 00:18:10]} 45. Rxf7 {[%clk 01:01:53]} {[%emt 00:01:59]} Rxa2
{[%clk 00:11:45]} {[%emt 00:00:47]} 46. Kxe4 {[%clk 01:02:13]} {[%emt
00:00:09]} Re2 {[%clk 00:11:14]} {[%emt 00:01:02]} 47. Kf3 {[%clk 01:02:26]}
{[%emt 00:00:17]} Re1 {[%clk 00:07:18]} {[%emt 00:04:25]} 48. Rd7 {[%clk
01:02:36]} {[%emt 00:00:13]} Kc3 {[%clk 00:07:10]} {[%emt 00:00:46]} 49. g4
{[%clk 01:02:50]} {[%emt 00:00:15]} d2 {[%clk 00:07:16]} {[%emt 00:00:25]} 50.
Rc7+ {[%clk 01:02:53]} {[%emt 00:00:27]} Kd3 {[%clk 00:06:51]} {[%emt
00:00:55]} 51. Rd7+ {[%clk 01:03:14]} {[%emt 00:00:08]} Kc2 {[%clk 00:07:14]}
{[%emt 00:00:08]} 52. Rc7+ {[%clk 01:03:37]} {[%emt 00:00:06]} Kd1 {[%clk
00:07:27]} {[%emt 00:00:17]} 53. Kf4 {[%clk 01:03:24]} {[%emt 00:00:43]} Rf1+
{[%clk 00:07:04]} {[%emt 00:00:53]} 54. Ke5 {[%clk 01:03:35]} {[%emt 00:00:18]}
1/2-1/2

[Event "NJSK 2023 Jeugd A"]
[Site "Almelo, Netherlands"]
[Date "2023.05.01"]
[Round "2.7"]
[White "Adams, Oscar"]
[Black "Knol, Daniel"]
[Result "1-0"]
[TimeControl "90min/40moves + 30min + 30sec/move"]
[WhiteElo "1760"]
[BlackElo "1819"]

1. f4 {[%emt 00:36:18]} d5 {[%clk 00:54:49]} {[%emt 00:01:06]} 2. Nf3 {[%clk
01:30:11]} {[%emt 00:00:06]} Nf6 {[%clk 00:54:51]} {[%emt 00:00:29]} 3. b3
{[%clk 01:30:32]} {[%emt 00:00:10]} e6 {[%clk 00:55:00]} {[%emt 00:00:20]} 4.
Bb2 {[%clk 01:30:51]} {[%emt 00:00:11]} c5 {[%clk 00:55:13]} {[%emt 00:00:16]}
5. e3 {[%clk 01:31:17]} {[%emt 00:00:04]} Be7 {[%clk 00:54:55]} {[%emt
00:00:48]} 6. Bb5+ {[%clk 01:30:44]} {[%emt 00:01:04]} Nbd7 {[%clk 00:53:44]}
{[%emt 00:01:41]} 7. Bxd7+ {[%clk 01:29:55]} {[%emt 00:01:18]} Bxd7 {[%clk
00:53:50]} {[%emt 00:00:24]} 8. O-O {[%emt 00:00:19]} O-O {[%clk 00:54:15]} 9.
a4 {[%clk 01:30:31]} {[%emt 00:00:10]} a6 {[%clk 00:48:34]} {[%emt 00:06:11]}
10. a5 {[%clk 01:29:16]} {[%emt 00:01:45]} b5 {[%clk 00:44:40]} {[%emt
00:04:23]} 11. axb6 {[%clk 01:29:25]} {[%emt 00:00:22]} Qxb6 {[%clk 00:45:09]}
{[%emt 00:00:02]} 12. d3 {[%clk 01:28:54]} {[%emt 00:01:00]} Rfd8 {[%clk
00:38:19]} {[%emt 00:07:19]} 13. Ne5 {[%clk 01:26:43]} {[%emt 00:02:41]} c4
{[%clk 00:33:09]} {[%emt 00:05:40]} 14. Bd4 {[%clk 01:26:38]} {[%emt 00:00:36]}
Bc5 {[%clk 00:33:17]} {[%emt 00:00:21]} 15. dxc4 {[%clk 01:24:26]} {[%emt
00:02:43]} Be8 {[%clk 00:28:15]} {[%emt 00:05:32]} 16. c3 {[%clk 01:21:13]}
{[%emt 00:03:42]} Ne4 {[%clk 00:26:08]} {[%emt 00:02:37]} 17. Nd2 {[%clk
01:18:54]} {[%emt 00:02:50]} Bxd4 {[%clk 00:25:06]} {[%emt 00:01:32]} 18. cxd4
{[%clk 01:19:07]} {[%emt 00:00:16]} Nxd2 {[%clk 00:25:21]} {[%emt 00:00:16]} 19.
Qxd2 {[%clk 01:19:31]} {[%emt 00:00:06]} Qxb3 {[%clk 00:25:45]} {[%emt
00:00:06]} 20. Rfb1 {[%clk 01:19:43]} {[%emt 00:00:18]} 1-0

[Event "NJSK 2023 Jeugd A"]
[Site "Almelo, Netherlands"]
[Date "2023.05.01"]
[Round "2.8"]
[White "Van Rootselaar, Rik"]
[Black "Moskalets, Sofiia"]
[Result "0-1"]
[TimeControl "90min/40moves + 30min + 30sec/move"]
[WhiteElo "1812"]
[BlackElo "1722"]

1. e4 {[%clk 01:30:56]} {[%emt 00:00:03]} c5 {[%clk 01:30:48]} {[%emt
00:00:11]} 2. Nf3 {[%clk 01:31:22]} {[%emt 00:00:05]} Nc6 {[%clk 01:31:12]}
{[%emt 00:00:06]} 3. Bb5 {[%clk 01:31:47]} {[%emt 00:00:06]} Na5 {[%clk
01:31:27]} {[%emt 00:00:14]} 4. c3 {[%clk 01:30:05]} {[%emt 00:02:12]} a6
{[%clk 01:31:50]} {[%emt 00:00:07]} 5. Ba4 {[%clk 01:29:16]} {[%emt 00:01:19]}
b5 {[%clk 01:31:57]} {[%emt 00:00:22]} 6. Bc2 {[%clk 01:29:39]} {[%emt
00:00:07]} e6 {[%clk 01:30:41]} {[%emt 00:01:46]} 7. O-O {[%clk 01:29:34]}
{[%emt 00:00:36]} Bb7 {[%clk 01:29:39]} {[%emt 00:01:32]} 8. d4 {[%clk
01:28:07]} {[%emt 00:01:57]} cxd4 {[%clk 01:29:37]} {[%emt 00:00:32]} 9. cxd4
{[%clk 01:26:28]} {[%emt 00:02:09]} Qc7 {[%clk 01:27:10]} {[%emt 00:02:57]} 10.
Nc3 {[%clk 01:18:38]} {[%emt 00:08:20]} Rc8 {[%clk 01:19:05]} {[%emt 00:08:35]}
11. Bd3 {[%clk 01:15:06]} {[%emt 00:04:02]} b4 {[%clk 01:09:06]} {[%emt
00:10:29]} 12. Ne2 {[%clk 01:13:13]} {[%emt 00:02:23]} Nf6 {[%clk 01:01:55]}
{[%emt 00:07:41]} 13. Bf4 {[%clk 01:06:09]} {[%emt 00:07:34]} Qb6 {[%clk
00:59:00]} {[%emt 00:03:25]} 14. Rc1 {[%clk 01:03:38]} {[%emt 00:03:01]} Rc6
{[%clk 00:43:40]} {[%emt 00:15:50]} 15. d5 {[%clk 00:45:54]} {[%emt 00:18:14]}
Rxc1 {[%clk 00:40:08]} {[%emt 00:04:02]} 16. Qxc1 {[%clk 00:46:12]} {[%emt
00:00:12]} Bc5 {[%clk 00:39:57]} {[%emt 00:00:41]} 17. dxe6 {[%clk 00:43:51]}
{[%emt 00:02:51]} dxe6 {[%clk 00:35:43]} {[%emt 00:04:43]} 18. Qc2 {[%clk
00:41:02]} {[%emt 00:03:20]} Nh5 {[%clk 00:25:25]} {[%emt 00:10:48]} 19. Ne5
{[%clk 00:32:53]} {[%emt 00:08:40]} Nxf4 {[%clk 00:18:29]} {[%emt 00:07:25]} 20.
Nxf4 {[%clk 00:33:16]} {[%emt 00:00:07]} b3 {[%clk 00:12:13]} {[%emt 00:06:46]}
21. axb3 {[%clk 00:25:06]} {[%emt 00:08:40]} Bd6 {[%clk 00:11:28]} {[%emt
00:01:15]} 22. Qc3 {[%clk 00:25:30]} {[%emt 00:00:06]} Qc7 {[%clk 00:10:30]}
{[%emt 00:01:27]} 23. Ra1 {[%clk 00:13:06]} {[%emt 00:12:54]} Qxc3 {[%clk
00:09:08]} {[%emt 00:01:52]} 24. bxc3 {[%clk 00:13:34]} {[%emt 00:00:03]} Bxe5
{[%clk 00:09:28]} {[%emt 00:00:11]} 25. Rxa5 {[%clk 00:12:14]} {[%emt
00:01:50]} Bxf4 {[%clk 00:09:46]} {[%emt 00:00:11]} 26. Bxa6 {[%clk 00:11:49]}
{[%emt 00:00:55]} Bxa6 {[%clk 00:09:39]} {[%emt 00:00:37]} 27. Rxa6 {[%clk
00:12:17]} {[%emt 00:00:03]} Ke7 {[%clk 00:09:55]} {[%emt 00:00:13]} 28. Rb6
{[%clk 00:11:46]} {[%emt 00:01:02]} Rb8 {[%clk 00:09:16]} {[%emt 00:01:08]} 29.
Rxb8 {[%clk 00:10:58]} {[%emt 00:01:18]} Bxb8 {[%clk 00:09:39]} {[%emt
00:00:07]} 30. Kf1 {[%clk 00:10:31]} {[%emt 00:00:57]} Be5 {[%clk 00:09:50]}
{[%emt 00:00:19]} 31. c4 {[%clk 00:10:54]} {[%emt 00:00:07]} Kd6 {[%clk
00:09:59]} {[%emt 00:00:20]} 32. Ke2 {[%clk 00:11:22]} {[%emt 00:00:02]} Kc5
{[%clk 00:10:01]} {[%emt 00:00:28]} 33. Kd3 {[%clk 00:11:24]} {[%emt 00:00:29]}
Kb4 {[%clk 00:10:12]} {[%emt 00:00:19]} 34. g3 {[%clk 00:10:14]} {[%emt
00:01:40]} Kxb3 {[%clk 00:07:46]} {[%emt 00:02:56]} 35. f4 {[%clk 00:10:19]}
{[%emt 00:00:25]} Bd6 {[%clk 00:07:13]} {[%emt 00:01:02]} 36. Kd4 {[%clk
00:06:44]} {[%emt 00:04:05]} Kb4 {[%clk 00:07:07]} {[%emt 00:00:37]} 37. h3
{[%clk 00:06:31]} {[%emt 00:00:43]} Bc5 {[%clk 00:06:45]} {[%emt 00:00:52]} 38.
Ke5 {[%clk 00:05:25]} {[%emt 00:01:36]} Kxc4 {[%clk 00:06:34]} {[%emt
00:00:41]} 39. g4 {[%clk 00:05:24]} {[%emt 00:00:30]} Kd3 {[%clk 00:05:52]}
{[%emt 00:01:13]} 40. f5 {[%clk 00:05:11]} {[%emt 00:00:42]} Bd4+ {[%clk
00:04:43]} {[%emt 00:01:39]} 41. Kf4 {[%clk 00:05:40]} {[%emt 00:00:02]} e5+
{[%clk 00:04:26]} {[%emt 00:00:47]} 42. Kf3 {[%clk 00:05:52]} {[%emt 00:00:17]}
f6 {[%clk 00:04:26]} {[%emt 00:00:31]} 43. h4 {[%clk 00:05:55]} {[%emt
00:00:27]} Be3 {[%clk 00:04:28]} {[%emt 00:00:28]} 0-1